bitfinex/quotes_BTCUSD_20250825
["timestamp","ask_amount","ask_price","bid_price","bid_amount"]
[1756119755338,5.06988654,111180.0,111170.0,5e-05]
[1756119755546,5.23412244,111180.0,111170.0,5e-05]
[1756119755982,5.23512244,111180.0,111170.0,5e-05]
[1756119757044,5.23599248,111180.0,111170.0,5e-05]
[1756119757256,5.2534415,111180.0,111170.0,5e-05]
[1756119757899,4.9139415,111180.0,111170.0,5e-05]
[1756119758155,4.7580215,111180.0,111170.0,5e-05]
[1756119758387,4.79330248,111180.0,111170.0,0.00201]
[1756119758652,4.6061778,111180.0,111170.0,0.00201]
[1756119758927,4.6311159,111180.0,111170.0,0.00201]
[1756119759139,4.7890359,111180.0,111170.0,0.00201]
[1756119759380,4.80848766,111180.0,111170.0,0.00201]
[1756119759578,4.80848766,111180.0,111170.0,0.00507]
[1756119759579,4.80849458,111180.0,111170.0,0.00507]
[1756119759709,4.65257458,111180.0,111170.0,0.00507]
[1756119759935,4.65051458,111180.0,111170.0,0.00507]
[1756119760151,4.80643458,111180.0,111170.0,0.00507]
[1756119760573,4.80842458,111180.0,111170.0,0.00507]
[1756119760777,4.65250458,111180.0,111170.0,0.00507]
[1756119761003,4.80643458,111180.0,111170.0,0.00507]
[1756119761427,4.80842458,111180.0,111170.0,0.00507]
[1756119761672,4.65051458,111180.0,111170.0,0.00507]
[1756119761887,4.80643458,111180.0,111170.0,0.00507]
[1756119762507,4.80842458,111180.0,111170.0,0.00507]
[1756119763013,4.64850458,111180.0,111170.0,0.00507]
[1756119763226,4.55962983,111180.0,111170.0,0.00507]
[1756119763406,4.71754983,111180.0,111170.0,0.00507]
[1756119763607,4.71953983,111180.0,111170.0,0.00507]
[1756119764046,4.56162983,111180.0,111170.0,0.00507]
[1756119764275,4.71754983,111180.0,111170.0,0.00507]
[1756119764510,4.56162983,111180.0,111170.0,0.00507]
[1756119764719,4.1664343,111180.0,111170.0,0.00507]
[1756119764934,0.46476838,111180.0,111170.0,0.00507]
[1756119765154,0.47308926,111180.0,111170.0,0.00507]
[1756119765358,0.45901118,111180.0,111170.0,0.00507]
[1756119765606,0.2255703,111180.0,111170.0,0.00507]
[1756119765833,0.04568184,111180.0,111170.0,0.09195475]
[1756119766067,0.38568184,111180.0,111170.0,0.09195475]
[1756119766286,0.02905,111180.0,111170.0,0.09195475]
[1756119766499,0.43763856,111180.0,111170.0,0.09195475]
[1756119766747,0.35909,111180.0,111170.0,0.09195475]
[1756119766985,0.69549846,111180.0,111170.0,0.09195475]
[1756119767204,0.71114511,111180.0,111170.0,0.09195475]
[1756119767629,0.71114511,111180.0,111170.0,0.09395475]
[1756119768051,0.72522151,111180.0,111170.0,0.09395475]
[1756119768256,0.70857385,111180.0,111170.0,0.09495475]
[1756119768460,0.72522426,111180.0,111170.0,0.09495475]
[1756119769487,0.70857385,111180.0,111170.0,0.09495475]
[1756119769712,0.70857385,111180.0,111170.0,0.09720355]
[1756119770410,0.37216539,111180.0,111170.0,0.09720355]
[1756119771495,0.35809,111180.0,111170.0,0.09720355]
[1756119771713,0.44495965,111180.0,111170.0,0.09720355]
[1756119771967,0.35809,111180.0,111170.0,0.09720355]
[1756119774327,0.53797846,111180.0,111170.0,0.09720355]
[1756119774536,0.69417846,111180.0,111170.0,0.09495475]
[1756119774741,0.70825365,111180.0,111170.0,0.09695475]
[1756119776982,0.70821365,111180.0,111170.0,0.09695475]
[1756119777194,0.70809365,111180.0,111170.0,0.09695475]
[1756119777428,0.7949233,111180.0,111170.0,0.09695475]
[1756119777891,0.7969133,111180.0,111170.0,0.09389475]
[1756119778144,0.7969133,111180.0,111170.0,0.09695475]
[1756119778592,0.7949233,111180.0,111170.0,0.09695475]
[1756119779048,0.70805365,111180.0,111170.0,0.09695475]
[1756119779760,0.55205365,111180.0,111170.0,0.09695475]
[1756119779986,0.70829365,111180.0,111170.0,0.09695475]
[1756119780688,0.55205365,111180.0,111170.0,0.09695475]
[1756119780948,0.70825365,111180.0,111170.0,0.09695475]
[1756119781164,0.37216519,111180.0,111170.0,0.09695475]
[1756119781383,0.37216519,111180.0,111170.0,0.09920355]
[1756119781624,0.35809,111180.0,111170.0,0.09920355]
[1756119781858,0.53797846,111180.0,111170.0,0.09695475]
[1756119782568,0.53797846,111180.0,111170.0,0.10145235]
[1756119782569,0.35809,111180.0,111170.0,0.10145235]
[1756119782787,0.34,111180.0,111170.0,0.10145235]
[1756119783623,0.34744133,111190.0,111170.0,0.10145235]
[1756119783831,0.52731362,111190.0,111180.0,0.08688475]
[1756119784037,0.86731362,111190.0,111180.0,0.24614475]
[1756119784242,0.46655321,111190.0,111180.0,0.24809475]
[1756119784463,0.09951521,111190.0,111180.0,0.24809475]
[1756119784666,0.43951521,111190.0,111180.0,0.24809475]
[1756119784841,0.6193875,111190.0,111180.0,0.24809475]
[1756119785250,0.6193875,111190.0,111180.0,0.09189475]
[1756119785611,0.6193875,111190.0,111180.0,0.09489475]
[1756119785825,0.6210875,111190.0,111180.0,0.08988475]
[1756119786037,0.6210875,111190.0,111180.0,0.09188475]
[1756119786238,0.70795715,111190.0,111180.0,0.09188475]
[1756119786446,0.71096715,111190.0,111180.0,0.09188475]
[1756119786702,0.70795715,111190.0,111180.0,0.09188475]
[1756119786840,0.70795715,111190.0,111180.0,0.09383475]
[1756119787046,0.70795715,111190.0,111180.0,0.09689475]
[1756119787469,0.70795715,111190.0,111180.0,0.09383475]
[1756119787675,0.6210875,111190.0,111180.0,0.09383475]
[1756119787878,0.7771675,111190.0,111180.0,0.09383475]
[1756119788099,0.7771675,111190.0,111180.0,0.09689475]
[1756119788100,0.7754675,111190.0,111180.0,0.09689475]
[1756119788319,0.62263321,111190.0,111180.0,0.09914335]
[1756119788540,0.46655321,111190.0,111180.0,0.09914335]
[1756119788766,0.43951521,111190.0,111180.0,0.09689475]
[1756119788981,0.6193875,111190.0,111180.0,0.09689475]
[1756119789197,0.43951521,111190.0,111180.0,0.09689475]
[1756119790046,0.43951521,111190.0,111180.0,0.09914335]
[1756119790259,0.43951521,111190.0,111180.0,0.09689475]
[1756119790676,0.6193875,111190.0,111180.0,0.09689475]
[1756119791102,0.70625715,111190.0,111180.0,0.09689475]
[1756119791754,0.70820715,111190.0,111180.0,0.25305475]
[1756119792204,0.70820715,111190.0,111180.0,0.25301475]
[1756119792415,0.6213375,111190.0,111180.0,0.25301475]
[1756119793722,0.6213375,111190.0,111180.0,0.25293475]
[1756119794479,0.6213375,111190.0,111180.0,0.24784475]
[1756119794480,0.6245275,111190.0,111180.0,0.24784475]
[1756119794731,0.6245275,111190.0,111180.0,0.005]
[1756119795076,0.73843615,111190.0,111180.0,0.005]
[1756119795275,0.75513764,111190.0,111180.0,0.005]
[1756119795999,0.6193875,111190.0,111180.0,0.09698475]
[1756119797096,0.63346004,111190.0,111180.0,0.09698475]
[1756119797501,0.45358775,111190.0,111180.0,0.09698475]
[1756119798486,0.63346004,111190.0,111180.0,0.09703475]
[1756119799136,0.45358775,111190.0,111180.0,0.09703475]
[1756119799585,0.11358775,111190.0,111180.0,0.09928335]
[1756119800152,0.11358775,111190.0,111180.0,0.09703475]
[1756119800720,0.29504004,111190.0,111180.0,0.09193475]
[1756119800961,0.68602772,111190.0,111180.0,0.09193475]
[1756119801169,0.71306672,111190.0,111180.0,0.09193475]
[1756119802170,0.71306672,111190.0,111180.0,0.08993475]
[1756119802625,0.72977738,111190.0,111180.0,0.08793475]
[1756119802829,0.72977738,111190.0,111180.0,0.08893475]
[1756119803243,0.71570484,111190.0,111180.0,0.08893475]
[1756119804297,0.87170484,111190.0,111180.0,0.08893475]
[1756119805270,0.71252484,111190.0,111180.0,0.08893475]
[1756119805678,0.66471716,111190.0,111180.0,0.08893475]
[1756119806284,0.67879402,111190.0,111180.0,0.09092475]
[1756119806699,0.67879451,111190.0,111180.0,0.09092475]
[1756119807107,0.67879451,111190.0,111180.0,0.09046205]
[1756119808278,0.67879451,111190.0,111180.0,0.09357205]
[1756119808531,0.67879451,111190.0,111180.0,0.09046205]
[1756119808937,0.76885416,111190.0,111180.0,0.08847205]
[1756119809805,0.92477416,111190.0,111180.0,0.08847205]
[1756119810039,0.76885416,111190.0,111180.0,0.08847205]
[1756119813147,0.76566416,111190.0,111180.0,0.09046205]
[1756119813782,0.76566416,111190.0,111180.0,0.08847205]
[1756119814957,0.76566416,111190.0,111180.0,0.09046205]
[1756119815870,0.74894869,111190.0,111180.0,0.09046205]
[1756119816080,0.76568116,111190.0,111180.0,0.09046205]
[1756119816739,0.76568116,111190.0,111180.0,0.09357205]
[1756119816960,0.4973592,111190.0,111180.0,0.09582065]
[1756119817161,0.65019249,111190.0,111180.0,0.09582065]
[1756119817362,0.4703202,111190.0,111180.0,0.09357205]
[1756119817564,0.4703202,111190.0,111180.0,0.09582065]
[1756119817991,0.65019249,111190.0,111180.0,0.09357205]
[1756119818196,0.45358775,111190.0,111180.0,0.09357205]
[1756119818703,0.63346004,111190.0,111180.0,0.09357205]
[1756119818913,0.45358775,111190.0,111180.0,0.09357205]
[1756119819765,0.45553775,111190.0,111180.0,0.09357205]
[1756119819984,0.45358775,111190.0,111180.0,0.09357205]
[1756119820609,0.71736919,111190.0,111180.0,0.09046205]
[1756119821269,0.71736919,111190.0,111180.0,0.08847205]
[1756119821482,0.72041919,111190.0,111180.0,0.08847205]
[1756119822332,0.87629919,111190.0,111180.0,0.08847205]
[1756119822560,0.87629919,111190.0,111180.0,0.00205]
[1756119822791,0.90333819,111190.0,111180.0,0.00205]
[1756119823898,4.76933996,111190.0,111180.0,0.00205]
[1756119824116,4.77271644,111190.0,111180.0,0.00205]
[1756119824327,4.84191644,111190.0,111180.0,0.00205]
[1756119824539,4.85654499,111190.0,111180.0,0.00205]
[1756119825552,4.84758499,111190.0,111180.0,0.00205]
[1756119825729,4.60922627,111190.0,111180.0,0.00105]
[1756119826119,4.61022627,111190.0,111180.0,0.00105]
[1756119826594,4.60396065,111190.0,111180.0,5e-05]
[1756119826917,4.60496065,111190.0,111180.0,5e-05]
[1756119827118,4.61903552,111190.0,111180.0,5e-05]
[1756119830072,4.61068136,111190.0,111180.0,5e-05]
[1756119831168,4.61902491,111190.0,111180.0,5e-05]
[1756119831426,4.61068136,111190.0,111180.0,5e-05]
[1756119831628,4.59660649,111190.0,111180.0,5e-05]
[1756119832204,4.59657322,111190.0,111180.0,5e-05]
[1756119832581,4.44069322,111190.0,111180.0,5e-05]
[1756119832777,4.59657322,111190.0,111180.0,5e-05]
[1756119833694,4.44069322,111190.0,111180.0,5e-05]
[1756119833905,4.59661322,111190.0,111180.0,5e-05]
[1756119834823,4.59657322,111190.0,111180.0,5e-05]
[1756119835028,4.61064799,111190.0,111180.0,5e-05]
[1756119835443,4.61064446,111190.0,111180.0,5e-05]
[1756119835670,4.65079559,111190.0,111180.0,5e-05]
[1756119836080,4.65079486,111190.0,111180.0,5e-05]
[1756119838474,4.49491486,111190.0,111180.0,5e-05]
[1756119838683,4.63106404,111190.0,111180.0,5e-05]
[1756119838889,4.65079403,111190.0,111180.0,5e-05]
[1756119839141,4.49491403,111190.0,111180.0,5e-05]
[1756119839394,4.65083403,111190.0,111180.0,5e-05]
[1756119841631,4.63675926,111190.0,111180.0,5e-05]
[1756119843795,4.55171011,111190.0,111180.0,0.00216]
[1756119844189,4.39583383,111190.0,111180.0,0.00216]
[1756119844400,4.55171383,111190.0,111180.0,0.00216]
[1756119844860,4.56578842,111190.0,111180.0,0.00216]
[1756119845075,4.54910471,111190.0,111180.0,5e-05]
[1756119845281,4.65265948,111190.0,111180.0,5e-05]
[1756119845451,4.65570948,111190.0,111180.0,5e-05]
[1756119845649,4.65265948,111190.0,111180.0,0.00216]
[1756119846644,4.63521046,111190.0,111180.0,0.00519]
[1756119847287,4.63521046,111190.0,111180.0,0.00216]
[1756119848071,4.63521046,111190.0,111180.0,5e-05]
[1756119849076,4.63826046,111190.0,111180.0,5e-05]
[1756119849294,4.48238046,111190.0,111180.0,5e-05]
[1756119849516,4.64661492,111190.0,111180.0,5e-05]
[1756119850151,4.64661783,111190.0,111180.0,5e-05]
[1756119852411,4.42435161,111190.0,111180.0,5e-05]
[1756119852631,4.44807622,111190.0,111180.0,5e-05]
[1756119853805,4.43400163,111190.0,111180.0,5e-05]
[1756119854135,4.43408837,111190.0,111180.0,5e-05]
[1756119854282,4.77408837,111190.0,111180.0,5e-05]
[1756119855514,4.774091,111190.0,111180.0,5e-05]
[1756119856876,4.62923688,111190.0,111180.0,5e-05]
[1756119857091,4.78511688,111190.0,111180.0,5e-05]
[1756119857496,4.78511688,111190.0,111180.0,0.00208]
[1756119858164,4.78511688,111190.0,111180.0,5e-05]
[1756119859369,4.78836688,111190.0,111180.0,5e-05]
[1756119859757,4.78511688,111190.0,111180.0,5e-05]
[1756119860600,4.78836688,111190.0,111180.0,5e-05]
[1756119863065,4.62923688,111190.0,111180.0,5e-05]
[1756119863314,4.78507688,111190.0,111180.0,0.00533]
[1756119863520,4.78507688,111190.0,111180.0,0.00208]
[1756119863729,4.76204555,111190.0,111180.0,0.00208]
[1756119863942,4.78508327,111190.0,111180.0,0.00208]
[1756119864160,4.78508327,111190.0,111180.0,5e-05]
[1756119864366,4.6292433,111190.0,111180.0,5e-05]
[1756119864568,4.76832922,111190.0,111180.0,5e-05]
[1756119864774,4.78508325,111190.0,111180.0,0.00208]
[1756119864976,4.78508325,111190.0,111180.0,0.00533]
[1756119865626,4.78508325,111190.0,111180.0,0.00208]
[1756119865858,4.62924325,111190.0,111180.0,0.00208]
[1756119866070,4.78508325,111190.0,111180.0,0.00208]
[1756119866688,4.61179423,111190.0,111180.0,0.00208]
[1756119866951,4.76568423,111190.0,111180.0,0.00533]
[1756119867360,4.76770423,111190.0,111180.0,0.00533]
[1756119868034,4.18297458,111190.0,111180.0,0.00533]
[1756119868229,4.60333182,111190.0,111180.0,0.00533]
[1756119868867,4.5949548,111190.0,111180.0,0.00533]
[1756119869111,4.60233065,111190.0,111180.0,0.00533]
[1756119869361,4.60133065,111190.0,111180.0,0.00533]
[1756119869551,4.6882003,111190.0,111180.0,0.00533]
[1756119870095,4.6902203,111190.0,111180.0,0.00533]
[1756119870311,4.6902203,111190.0,111180.0,0.00208]
[1756119870527,4.6902203,111190.0,111180.0,5e-05]
[1756119870738,4.6934703,111190.0,111180.0,5e-05]
[1756119871185,4.6944703,111190.0,111180.0,5e-05]
[1756119871608,4.6934703,111190.0,111180.0,5e-05]
[1756119872509,4.71720173,111190.0,111180.0,5e-05]
[1756119873608,4.69207184,111190.0,111180.0,5e-05]
[1756119873824,4.71720209,111190.0,111180.0,5e-05]
[1756119874258,4.71820209,111190.0,111180.0,5e-05]
[1756119875042,4.78740209,111190.0,111180.0,5e-05]
[1756119875497,4.78840209,111190.0,111180.0,5e-05]
[1756119877096,4.78840382,111190.0,111180.0,5e-05]
[1756119879340,4.87528857,111190.0,111180.0,5e-05]
[1756119879791,4.89460307,111190.0,111180.0,5e-05]
[1756119880197,4.88052719,111190.0,111180.0,5e-05]
[1756119883241,4.85748951,111190.0,111180.0,5e-05]
[1756119883487,4.89461285,111190.0,111180.0,5e-05]
[1756119883806,4.87994894,111190.0,111180.0,5e-05]
[1756119884018,4.88053343,111190.0,111180.0,5e-05]
[1756119886016,4.72469343,111190.0,111180.0,5e-05]
[1756119886214,4.88045343,111190.0,111180.0,5e-05]
[1756119886423,4.89453077,111190.0,111180.0,5e-05]
[1756119886944,4.73877077,111190.0,111180.0,5e-05]
[1756119887152,4.89453077,111190.0,111180.0,5e-05]
[1756119887550,4.73877077,111190.0,111180.0,5e-05]
[1756119887707,4.89453077,111190.0,111180.0,5e-05]
[1756119889784,4.89452641,111190.0,111180.0,5e-05]
[1756119891777,4.88044907,111190.0,111180.0,5e-05]
[1756119893012,4.85531209,111190.0,111180.0,5e-05]
[1756119893213,4.88041405,111190.0,111180.0,5e-05]
[1756119893839,4.88040789,111190.0,111180.0,5e-05]
[1756119894041,4.87144789,111190.0,111180.0,5e-05]
[1756119894861,4.88552522,111190.0,111180.0,5e-05]
[1756119897326,4.88552389,111190.0,111180.0,5e-05]
[1756119897531,4.88509501,111190.0,111180.0,5e-05]
[1756119900365,4.72933501,111190.0,111180.0,5e-05]
[1756119900569,4.88505501,111190.0,111180.0,5e-05]
[1756119901782,4.86204958,111190.0,111180.0,5e-05]
[1756119901950,4.88506095,111190.0,111180.0,5e-05]
[1756119902180,4.72934095,111190.0,111180.0,5e-05]
[1756119902384,4.88502095,111190.0,111180.0,5e-05]
[1756119903294,4.87094362,111190.0,111180.0,5e-05]
[1756119904736,4.71526362,111190.0,111180.0,5e-05]
[1756119905080,4.69015986,111190.0,111180.0,5e-05]
[1756119905265,4.86770217,111190.0,111180.0,5e-05]
[1756119905461,4.87081217,111190.0,111180.0,5e-05]
[1756119905664,4.86770217,111190.0,111180.0,5e-05]
[1756119906308,4.87081217,111190.0,111180.0,5e-05]
[1756119906459,4.88488928,111190.0,111180.0,5e-05]
[1756119906671,4.72609928,111190.0,111180.0,0.00534]
[1756119906893,4.87975928,111190.0,111180.0,0.00534]
[1756119907107,4.88179928,111190.0,111180.0,0.00534]
[1756119907365,4.87975928,111190.0,111180.0,0.00534]
[1756119907742,4.72407928,111190.0,111180.0,0.00534]
[1756119907947,4.87975928,111190.0,111180.0,0.00534]
[1756119908099,4.83960815,111190.0,111180.0,0.00534]
[1756119909305,4.84105815,111190.0,111180.0,0.00534]
[1756119910343,4.68537815,111190.0,111180.0,0.00534]
[1756119910546,4.51017375,111190.0,111180.0,0.00534]
[1756119910751,4.66581375,111190.0,111180.0,0.00534]
[1756119910997,4.66474125,111190.0,111180.0,0.00534]
[1756119911424,4.63962894,111190.0,111180.0,0.00534]
[1756119911640,4.65069722,111190.0,111180.0,0.00534]
[1756119911833,4.73756687,111190.0,111180.0,0.00534]
[1756119912318,4.71825237,111190.0,111180.0,0.00534]
[1756119912503,4.71825028,111190.0,111180.0,0.00534]
[1756119914858,4.7323266,111190.0,111180.0,0.00534]
[1756119915566,4.5766866,111190.0,111180.0,0.00534]
[1756119915782,4.7322817,111190.0,111180.0,0.00534]
[1756119916000,4.7322819,111190.0,111180.0,0.00534]
[1756119916429,4.46607897,111190.0,111180.0,0.00534]
[1756119916671,4.62167897,111190.0,111180.0,0.00534]
[1756119916899,4.47236095,111190.0,111180.0,0.00534]
[1756119917117,4.62167897,111190.0,111180.0,0.00534]
[1756119917346,4.61330228,111190.0,111180.0,0.00534]
[1756119917560,4.70017193,111190.0,111180.0,0.00534]
[1756119921442,4.68547834,111190.0,111180.0,5e-05]
[1756119921655,4.70220726,111190.0,111180.0,5e-05]
[1756119921869,4.70220726,111190.0,111180.0,0.0022]
[1756119922086,4.70220726,111190.0,111180.0,0.00545]
[1756119922301,4.70014726,111190.0,111180.0,0.00545]
[1756119922971,4.70220726,111190.0,111180.0,0.0022]
[1756119923425,4.70220726,111190.0,111180.0,0.00545]
[1756119925464,4.70514726,111190.0,111180.0,5e-05]
[1756119925684,4.54660726,111190.0,111180.0,0.0022]
[1756119925904,4.70212726,111190.0,111180.0,0.00545]
[1756119926344,4.70006726,111190.0,111180.0,0.00545]
[1756119926533,4.54454726,111190.0,111180.0,0.00545]
[1756119927027,4.61319761,111190.0,111180.0,0.00545]
[1756119927695,4.61525761,111190.0,111180.0,0.00545]
[1756119927918,4.61319761,111190.0,111180.0,0.00545]
[1756119928397,4.61525761,111190.0,111180.0,0.00545]
[1756119929599,4.61525761,111190.0,111180.0,0.0022]
[1756119929850,4.70212726,111190.0,111180.0,0.00545]
[1756119931303,4.70212594,111190.0,111180.0,0.00545]
[1756119933348,4.68804962,111190.0,111180.0,0.00545]
[1756119933567,4.68804962,111190.0,111180.0,0.0022]
[1756119935756,4.60909308,111190.0,111180.0,0.0022]
[1756119935923,4.63605608,111190.0,111180.0,0.0022]
[1756119936433,4.65013165,111190.0,111180.0,0.0022]
[1756119937490,4.49469165,111190.0,111180.0,0.0022]
[1756119937705,4.65013165,111190.0,111180.0,5e-05]
[1756119938129,4.7370013,111190.0,111180.0,0.0022]
[1756119938550,4.7370013,111190.0,111180.0,0.00545]
[1756119938938,4.77786551,111190.0,111180.0,0.00545]
[1756119939716,4.77786551,111190.0,111180.0,0.0022]
[1756119940319,0.68978267,111190.0,111180.0,0.00516]
[1756119940684,0.0457706,111190.0,111180.0,0.09204475]
[1756119940794,0.04578908,111190.0,111180.0,0.09204475]
[1756119940999,0.03549316,111190.0,111180.0,0.09204475]
[1756119941249,0.35774608,111190.0,111180.0,0.09204475]
[1756119941719,0.01774608,111190.0,111180.0,0.09204475]
[1756119942142,0.01674608,111190.0,111180.0,0.09204475]
[1756119942313,0.01674608,111190.0,111180.0,0.09304475]
[1756119943099,0.19661837,111190.0,111180.0,0.09304475]
[1756119943309,0.19661837,111190.0,111180.0,0.09504475]
[1756119943706,0.19661837,111190.0,111180.0,0.09404475]
[1756119943915,0.19661837,111190.0,111180.0,0.09604475]
[1756119944594,0.59590692,111190.0,111180.0,0.00916]
[1756119945027,0.59872692,111190.0,111180.0,0.00405]
[1756119945454,0.59872692,111190.0,111180.0,0.00613]
[1756119945455,0.59590692,111190.0,111180.0,0.00613]
[1756119945664,0.69201837,111190.0,111180.0,0.00909]
[1756119945890,0.53661837,111190.0,111180.0,0.00709]
[1756119946098,0.53661837,111190.0,111180.0,0.09397475]
[1756119946099,0.69197837,111190.0,111180.0,0.09397475]
[1756119946303,0.69197837,111190.0,111180.0,0.09497475]
[1756119946727,0.69197837,111190.0,111180.0,0.09297475]
[1756119947159,0.69197837,111190.0,111180.0,0.09397475]
[1756119947999,0.53661837,111190.0,111180.0,0.09397475]
[1756119948240,0.53661837,111190.0,111180.0,0.09622335]
[1756119948473,0.38378408,111190.0,111180.0,0.09622335]
[1756119948887,0.56365637,111190.0,111180.0,0.09622335]
[1756119949110,0.38378408,111190.0,111180.0,0.09622335]
[1756119949546,0.38378408,111190.0,111180.0,0.09397475]
[1756119950580,0.38378408,111190.0,111180.0,0.09622335]
[1756119951800,0.35674608,111190.0,111180.0,0.11933808]
[1756119952016,0.01674608,111190.0,111180.0,0.12158668]
[1756119952652,0.01674608,111190.0,111180.0,0.11833808]
[1756119953124,0.01674608,111190.0,111180.0,0.12058668]
[1756119953563,0.01674608,111190.0,111180.0,0.12158668]
[1756119953770,0.01674608,111190.0,111180.0,0.12058668]
[1756119953976,0.01674608,111190.0,111180.0,0.27365808]
[1756119954180,0.01674608,111190.0,111180.0,0.27765808]
[1756119954596,0.01674608,111190.0,111180.0,0.27665808]
[1756119955046,0.01674608,111190.0,111180.0,0.27865808]
[1756119956305,0.01674608,111190.0,111180.0,0.34781808]
[1756119957006,0.01674608,111190.0,111180.0,0.52770654]
[1756119957221,0.00012999,111210.0,111200.0,0.29730513]
[1756119957443,0.01420075,111210.0,111200.0,1.63856934]
[1756119957658,0.33505588,111250.0,111210.0,0.48882869]
[1756119957870,0.00199,111250.0,111240.0,0.00208]
[1756119958101,0.19382703,111250.0,111240.0,0.08896475]
[1756119958316,0.53382703,111250.0,111240.0,0.08896475]
[1756119958523,0.18491351,111250.0,111240.0,0.08688475]
[1756119958744,0.52491351,111250.0,111240.0,0.08688475]
[1756119958978,0.58050989,111250.0,111240.0,0.08688475]
[1756119959166,0.52691351,111250.0,111240.0,0.08688475]
[1756119960244,0.53091351,111250.0,111240.0,0.08688475]
[1756119960461,0.51980517,111240.0,111220.0,0.22444]
[1756119960673,0.67504517,111240.0,111230.0,0.08688475]
[1756119960881,0.52489517,111240.0,111230.0,0.08688475]
[1756119962157,0.17982377,111220.0,111200.0,0.16560965]
[1756119962361,0.18181377,111220.0,111210.0,0.24416475]
[1756119962582,0.00199,111220.0,111210.0,0.24416475]
[1756119963002,0.18181377,111220.0,111210.0,0.24416475]
[1756119964058,0.18491377,111220.0,111210.0,0.24208475]
[1756119964706,0.18491377,111220.0,111210.0,0.24416475]
[1756119964855,0.18181377,111220.0,111210.0,0.24616475]
[1756119965072,0.18181377,111220.0,111210.0,0.08888475]
[1756119965073,0.18491377,111220.0,111210.0,0.08888475]
[1756119965278,0.18491377,111220.0,111210.0,0.24408475]
[1756119965482,0.18491377,111220.0,111210.0,0.24208475]
[1756119965672,0.18491377,111220.0,111210.0,0.24204475]
[1756119965875,0.52491377,111220.0,111210.0,0.08788475]
[1756119966129,0.75144637,111220.0,111210.0,0.08788475]
[1756119966305,0.75144637,111220.0,111210.0,0.08688475]
[1756119967035,0.17986687,111200.0,111180.0,0.09753333]
[1756119967168,0.18185687,111200.0,111190.0,0.24412475]
[1756119967742,0.18495687,111200.0,111190.0,0.08896475]
[1756119967882,0.56233812,111200.0,111190.0,0.08688475]
[1756119968147,0.57641009,111200.0,111190.0,0.24204475]
[1756119968338,0.53907703,111200.0,111190.0,0.08688475]
[1756119968920,0.53597703,111200.0,111190.0,0.08896475]
[1756119969133,0.35412016,111200.0,111190.0,0.08996475]
[1756119969363,0.37078347,111200.0,111190.0,0.09742155]
[1756119969581,0.03078347,111200.0,111190.0,0.12960071]
[1756119969811,0.01412016,111200.0,111190.0,0.12510391]
[1756119970031,0.01412016,111200.0,111190.0,0.12735231]
[1756119970243,0.01412016,111200.0,111190.0,0.12510391]
[1756119970463,0.01412016,111200.0,111190.0,0.12735231]
[1756119971517,4.819e-05,111200.0,111190.0,0.12735231]
[1756119972106,4.819e-05,111200.0,111190.0,0.12214391]
[1756119972351,4.819e-05,111200.0,111190.0,0.27730391]
[1756119972555,4.819e-05,111200.0,111190.0,0.28025391]
[1756119974977,0.01411954,111200.0,111190.0,0.28025391]
[1756119976183,0.01411954,111200.0,111190.0,1.32027601]
[1756119976792,0.01411954,111200.0,111190.0,0.98524372]
[1756119977012,0.01411954,111200.0,111190.0,0.27726391]
[1756119977490,0.01411954,111200.0,111190.0,0.28021391]
[1756119977693,0.01411954,111200.0,111190.0,0.39329391]
[1756119977899,0.01919954,111200.0,111190.0,0.27518391]
[1756119978103,0.01919954,111200.0,111190.0,0.27728391]
[1756119978323,0.01622954,111200.0,111190.0,0.27728391]
[1756119978566,0.01411954,111200.0,111190.0,0.27728391]
[1756119978791,0.01411954,111200.0,111190.0,0.12511391]
[1756119978928,0.01411954,111200.0,111190.0,0.27728391]
[1756119979125,0.01622954,111200.0,111190.0,0.27728391]
[1756119979827,0.01622954,111200.0,111190.0,0.12216391]
[1756119980063,0.01411954,111200.0,111190.0,0.27728391]
[1756119980980,0.01411954,111200.0,111190.0,0.28023391]
[1756119982718,0.01411954,111200.0,111190.0,0.28019391]
[1756119983577,0.01411954,111200.0,111190.0,0.54544391]
[1756119984509,0.01411954,111200.0,111190.0,0.54839391]
[1756119984710,4.819e-05,111200.0,111190.0,0.54839391]
[1756119985119,4.819e-05,111200.0,111190.0,0.54544391]
[1756119986274,4.819e-05,111200.0,111190.0,0.54839391]
[1756119989498,4.819e-05,111200.0,111190.0,0.28019391]
[1756119989856,4.819e-05,111200.0,111190.0,1.32021601]
[1756119990086,4.819e-05,111200.0,111190.0,1.58841601]
[1756119991084,4.819e-05,111200.0,111190.0,1.25346372]
[1756119991273,4.819e-05,111200.0,111190.0,1.40850372]
[1756119995039,0.00512819,111200.0,111190.0,0.38826391]
[1756119995249,0.00512819,111200.0,111190.0,0.51108475]
[1756119995466,0.1849843,111200.0,111190.0,0.35608475]
[1756119995675,0.1849843,111200.0,111190.0,0.51108475]
[1756119996475,0.1849843,111200.0,111190.0,0.35608475]
[1756119996695,0.1849843,111200.0,111190.0,0.51108475]
[1756119996904,0.1849843,111200.0,111190.0,0.35508475]
[1756119997101,0.1849843,111200.0,111190.0,0.51008475]
[1756119997306,0.1849843,111200.0,111190.0,0.51208475]
[1756119997686,0.22910316,111210.0,111190.0,0.57021423]
[1756119997887,0.18196611,111200.0,111190.0,0.57134422]
[1756119998277,0.18196611,111200.0,111190.0,0.30314422]
[1756119998717,0.18196611,111200.0,111190.0,0.30214422]
[1756119999221,0.18196611,111200.0,111190.0,0.30014422]
[1756119999649,0.18196611,111200.0,111190.0,0.15021422]
[1756119999860,0.00211,111200.0,111190.0,0.24708474]
[1756120000064,0.15800153,111210.0,111190.0,0.24708474]
[1756120000282,0.49800153,111210.0,111200.0,0.0022482]
[1756120000490,0.50001153,111210.0,111200.0,0.08913295]
[1756120000695,0.50001153,111210.0,111200.0,0.08688475]
[1756120000878,0.50001153,111210.0,111200.0,0.08913295]
[1756120001089,0.354071,111210.0,111200.0,0.09645115]
[1756120001546,0.34,111210.0,111200.0,0.09645115]
[1756120001765,0.52881497,111220.0,111200.0,0.09645115]
[1756120001979,0.52881497,111220.0,111210.0,0.24184475]
[1756120002200,0.53079497,111220.0,111210.0,0.24184475]
[1756120003401,0.53369497,111220.0,111210.0,0.24184475]
[1756120003828,0.53469497,111220.0,111210.0,0.24184475]
[1756120004258,0.53569497,111220.0,111210.0,0.24184475]
[1756120004411,0.53369497,111220.0,111210.0,0.24184475]
[1756120005057,0.54776576,111220.0,111210.0,0.24184475]
[1756120007507,0.54486576,111220.0,111210.0,0.24184475]
[1756120008988,0.53587456,111220.0,111210.0,0.24691475]
[1756120009170,0.53389456,111220.0,111210.0,0.24691475]
[1756120009609,0.53587456,111220.0,111210.0,0.24691475]
[1756120011410,0.53389456,111220.0,111210.0,0.24691475]
[1756120012101,0.53587456,111220.0,111210.0,0.24691475]